[Event "Championnat du monde jeunes U10"]
[Date "2024.11.20"]
[White "Bulat, Mansur"]
[Black "Prokhorov, Makar"]
[WhiteElo "1610"]
[BlackElo "1771"]
[Round "6.4"]
[Result "1-0"]
[TimeControl "5400+30"]

1. e4 {[%clk 1:30:54]} 1... c5 {[%clk 1:30:50]} 2. Nf3 {[%clk 1:30:55]} 2... Nc6
{[%clk 1:31:11]} 3. d4 {[%clk 1:30:42]} 3... cxd4 {[%clk 1:30:51]} 4. Nxd4
{[%clk 1:30:05]} 4... g6 {[%clk 1:30:46]} 5. Nc3 {[%clk 1:29:24]} 5... Bg7
{[%clk 1:30:40]} 6. Be3 {[%clk 1:29:40]} 6... Nf6 {[%clk 1:30:34]} 7. Nxc6
{[%clk 1:29:59]} 7... bxc6 {[%clk 1:30:29]} 8. e5 {[%clk 1:29:40]} 8... Ng8
{[%clk 1:28:23]} 9. Bd4 {[%clk 1:29:50]} 9... Qa5 {[%clk 1:24:43]} 10. f4 {[%clk
1:29:40]} 10... Nh6 {[%clk 1:22:27]} 11. e6 {[%clk 1:23:30]} 11... f6 {[%clk
1:11:14]} 12. exd7+ {[%clk 1:14:57]} 12... Bxd7 {[%clk 1:07:25]} 13. Bd3 {[%clk
1:11:30]} 13... O-O {[%clk 1:03:23]} 14. O-O {[%clk 1:06:19]} 14... Rad8 {[%clk
1:00:56]} 15. Bf2 {[%clk 1:01:02]} 15... Ng4 {[%clk 0:59:35]} 16. Qe1 {[%clk
0:56:13]} 16... f5 {[%clk 0:53:19]} 17. Kh1 {[%clk 0:50:03]} 17... Nxf2+ {[%clk
0:51:38]} 18. Rxf2 {[%clk 0:49:19]} 18... e5 {[%clk 0:51:10]} 19. fxe5 {[%clk
0:46:52]} 19... Bxe5 {[%clk 0:49:18]} 20. Rd1 {[%clk 0:40:59]} 20... Qc7 {[%clk
0:44:12]} 21. Rfd2 {[%clk 0:32:18]} 21... Rfe8 {[%clk 0:37:43]} 22. Bc4+ {[%clk
0:30:31]} 22... Kh8 {[%clk 0:37:37]} 23. Qh4 {[%clk 0:29:47]} 23... Kg7 {[%clk
0:29:19]} 24. Bb3 {[%clk 0:23:43]} 24... Bf6 {[%clk 0:22:39]} 25. Qg3 {[%clk
0:23:48]} 25... Qxg3 {[%clk 0:21:53]} 26. Rxd7+ {[%clk 0:23:57]} 26... Re7
{[%clk 0:15:05]} 27. Rxe7+ {[%clk 0:24:18]} 27... Bxe7 {[%clk 0:15:29]} 28. hxg3
{[%clk 0:24:43]} 28... Rxd1+ {[%clk 0:15:48]} 29. Nxd1 {[%clk 0:25:09]} 29...
Bd6 {[%clk 0:16:09]} 30. Kh2 {[%clk 0:25:27]} 30... h5 {[%clk 0:16:36]} 31. Ba4
{[%clk 0:24:42]} 31... c5 {[%clk 0:16:42]} 32. Nc3 {[%clk 0:24:30]} 32... h4
{[%clk 0:16:48]} 33. Kg1 {[%clk 0:24:21]} 33... hxg3 {[%clk 0:16:58]} 34. Nb5
{[%clk 0:24:16]} 34... Bb8 {[%clk 0:17:13]} 35. Na3 {[%clk 0:24:21]} 35... g5
{[%clk 0:17:13]} 36. Bc6 {[%clk 0:24:42]} 36... f4 {[%clk 0:17:22]} 37. Kf1
{[%clk 0:25:06]} 37... Kf6 {[%clk 0:17:46]} 38. Nc4 {[%clk 0:25:28]} 38... Bc7
{[%clk 0:17:51]} 39. Nd2 {[%clk 0:25:28]} 39... Bb6 {[%clk 0:17:40]} 40. c3
{[%clk 0:24:59]} 40... Ke6 {[%clk 0:17:03]} 41. Bb7 {[%clk 0:25:05]} 41... Bd8
{[%clk 0:16:58]} 42. Ke2 {[%clk 0:24:49]} 42... Be7 {[%clk 0:17:18]} 43. Kf3
{[%clk 0:25:02]} 43... Kf6 {[%clk 0:16:47]} 44. Kg4 {[%clk 0:25:21]} 44... Kg6
{[%clk 0:16:58]} 45. Ne4 {[%clk 0:25:01]} 45... Kh6 {[%clk 0:16:13]} 46. Ba6
{[%clk 0:24:59]} 46... Kg6 {[%clk 0:16:13]} 47. Bd3 {[%clk 0:25:24]} 47... Kh6
{[%clk 0:16:13]} 48. a3 {[%clk 0:25:47]} 48... a5 {[%clk 0:16:10]} 49. a4 {[%clk
0:26:12]} 49... Kg6 {[%clk 0:15:15]} 50. Nxc5+ {[%clk 0:26:03]} 50... Kf6 {[%clk
0:14:59]} 51. Nb7 {[%clk 0:26:14]} 51... Ke5 {[%clk 0:15:17]} 52. Nxa5 {[%clk
0:26:37]} 52... Bf6 {[%clk 0:15:02]} 53. Nc4+ {[%clk 0:26:50]} 53... Ke6 {[%clk
0:15:24]} 54. a5 {[%clk 0:27:14]} 54... Kd7 {[%clk 0:15:44]} 55. a6 {[%clk
0:27:12]} 55... Kc7 {[%clk 0:16:06]} 56. Be4 {[%clk 0:26:07]} 56... Kb8 {[%clk
0:16:27]} 57. b4 {[%clk 0:25:56]} 57... Bxc3 {[%clk 0:16:32]} 58. b5 {[%clk
0:26:22]} 58... Bd4 {[%clk 0:16:47]} 59. Kxg5 {[%clk 0:26:38]} 59... Ka7 {[%clk
0:17:09]} 60. Kxf4 {[%clk 0:26:56]} 60... Bf2 {[%clk 0:17:31]} 61. Nd6 {[%clk
0:26:10]} 61... Kb8 {[%clk 0:17:31]} 62. Kf5 {[%clk 0:25:38]} 62... Ka7 {[%clk
0:17:35]} 63. Ke6 {[%clk 0:26:02]} 63... Kb8 {[%clk 0:17:56]} 64. Kd7 {[%clk
0:26:17]} 64... Ka7 {[%clk 0:18:17]} 65. Nc8+ {[%clk 0:26:34]} 65... Kb8 {[%clk
0:18:40]} 66. a7+ {[%clk 0:26:59]} 1-0

[Variant "Standard"]
[Site "Europe Echecs"]

[Event "Championnat du monde jeunes U10"]
[Date "2024.11.20"]
[White "Hung, I-Hsuan"]
[Black "Katta, Sriansh"]
[WhiteElo "1608"]
[BlackElo "1766"]
[Round "6.5"]
[Result "0-1"]
[TimeControl "5400+30"]

1. e4 {[%clk 1:30:59]} 1... c5 {[%clk 1:30:53]} 2. Nf3 {[%clk 1:31:20]} 2... Nc6
{[%clk 1:31:20]} 3. Bb5 {[%clk 1:31:40]} 3... g6 {[%clk 1:31:45]} 4. Bxc6 {[%clk
1:31:54]} 4... dxc6 {[%clk 1:32:12]} 5. d3 {[%clk 1:32:06]} 5... Bg7 {[%clk
1:32:36]} 6. h3 {[%clk 1:32:21]} 6... Nf6 {[%clk 1:32:50]} 7. Nc3 {[%clk
1:32:13]} 7... Nd7 {[%clk 1:33:13]} 8. Be3 {[%clk 1:32:28]} 8... b6 {[%clk
1:33:33]} 9. Qd2 {[%clk 1:32:18]} 9... h6 {[%clk 1:33:51]} 10. O-O {[%clk
1:32:28]} 10... e5 {[%clk 1:34:15]} 11. Qe2 {[%clk 1:32:31]} 11... Nf8 {[%clk
1:33:07]} 12. Nd2 {[%clk 1:31:40]} 12... Ne6 {[%clk 1:32:28]} 13. f4 {[%clk
1:30:45]} 13... exf4 {[%clk 1:30:26]} 14. Bxf4 {[%clk 1:30:43]} 14... Nxf4
{[%clk 1:30:27]} 15. Rxf4 {[%clk 1:30:58]} 15... Be6 {[%clk 1:30:24]} 16. Kh1
{[%clk 1:24:26]} 16... Qc7 {[%clk 1:27:25]} 17. Rff1 {[%clk 1:22:06]} 17... O-O
{[%clk 1:26:39]} 18. Qf3 {[%clk 1:20:20]} 18... Rad8 {[%clk 1:20:32]} 19. Nb3
{[%clk 1:16:51]} 19... c4 {[%clk 1:15:55]} 20. Nc1 {[%clk 1:16:57]} 20... b5
{[%clk 1:14:07]} 21. a3 {[%clk 1:11:56]} 21... a5 22. N1e2 {[%clk 1:06:36]}
22... cxd3 {[%clk 1:04:05]} 23. cxd3 {[%clk 1:04:44]} 23... Qd6 {[%clk 1:03:05]}
24. Rfd1 {[%clk 1:01:53]} 24... b4 {[%clk 1:01:54]} 25. Na4 {[%clk 0:59:06]}
25... Bb3 {[%clk 1:01:19]} 26. axb4 {[%clk 0:55:43]} 26... Bxd1 {[%clk 0:59:55]}
27. Rxd1 {[%clk 0:50:51]} 27... Qxb4 {[%clk 0:59:13]} 28. Ra1 {[%clk 0:50:18]}
28... Ra8 {[%clk 0:53:02]} 29. d4 {[%clk 0:49:04]} 29... Bxd4 {[%clk 0:50:48]}
30. Nxd4 {[%clk 0:49:13]} 30... Qxd4 {[%clk 0:51:13]} 31. e5 {[%clk 0:48:22]}
31... Qxe5 {[%clk 0:51:11]} 32. Nb6 {[%clk 0:48:01]} 32... Qxb2 {[%clk 0:50:58]}
33. Ra2 {[%clk 0:46:20]} 33... Qxa2 {[%clk 0:50:35]} 34. Nd7 {[%clk 0:45:58]}
34... Qa1+ {[%clk 0:50:51]} 35. Kh2 {[%clk 0:46:18]} 35... Qg7 {[%clk 0:50:38]}
36. Qxc6 {[%clk 0:46:06]} 36... a4 {[%clk 0:50:48]} 37. Nb6 {[%clk 0:45:59]}
37... a3 {[%clk 0:50:52]} 0-1

[Variant "Standard"]
[Site "Europe Echecs"]

[Event "Championnat du monde jeunes U10"]
[Date "2024.11.20"]
[White "Munoz Padilla, Andres"]
[Black "Sander, Tino"]
[WhiteElo "1604"]
[BlackElo "1736"]
[Round "6.6"]
[Result "1-0"]
[TimeControl "5400+30"]

1. e4 {[%clk 1:30:56]} 1... e5 {[%clk 1:30:54]} 2. Nf3 {[%clk 1:30:47]} 2... Nc6
{[%clk 1:31:06]} 3. Bc4 {[%clk 1:30:48]} 3... Bc5 {[%clk 1:31:17]} 4. b4 {[%clk
1:29:09]} 4... Bxb4 {[%clk 1:31:21]} 5. c3 {[%clk 1:29:17]} 5... Be7 {[%clk
1:30:27]} 6. d4 {[%clk 1:29:36]} 6... d6 {[%clk 1:29:23]} 7. Qb3 {[%clk
1:22:28]} 7... Na5 {[%clk 1:17:40]} 8. Bxf7+ {[%clk 1:14:59]} 8... Kf8 {[%clk
1:17:51]} 9. Qa4 {[%clk 1:15:20]} 9... Kxf7 {[%clk 1:15:34]} 10. Qxa5 {[%clk
1:15:37]} 10... b6 {[%clk 1:09:21]} 11. Qa3 {[%clk 0:57:28]} 11... exd4 {[%clk
1:05:20]} 12. cxd4 {[%clk 0:57:50]} 12... Bb7 {[%clk 1:05:09]} 13. Qb3+ {[%clk
0:51:30]} 13... Ke8 {[%clk 0:58:41]} 14. Nbd2 {[%clk 0:48:47]} 14... d5 {[%clk
0:41:24]} 15. e5 {[%clk 0:42:18]} 15... Qd7 {[%clk 0:35:47]} 16. O-O {[%clk
0:41:42]} 16... Qe6 {[%clk 0:31:13]} 17. Re1 {[%clk 0:33:18]} 17... Nh6 {[%clk
0:30:02]} 18. Bb2 {[%clk 0:30:04]} 18... g6 {[%clk 0:26:54]} 19. Ne4 {[%clk
0:29:04]} 19... Qf5 {[%clk 0:24:41]} 20. Nd6+ {[%clk 0:26:39]} 20... cxd6 {[%clk
0:24:26]} 21. exd6 {[%clk 0:27:01]} 21... Ng8 {[%clk 0:22:30]} 22. dxe7 {[%clk
0:27:19]} 22... Nf6 {[%clk 0:21:42]} 23. Rac1 {[%clk 0:24:44]} 23... Rc8 {[%clk
0:19:27]} 24. Qa4+ {[%clk 0:19:06]} 24... Qd7 {[%clk 0:17:43]} 25. Qxd7+ {[%clk
0:16:53]} 25... Nxd7 {[%clk 0:17:48]} 26. Ba3 {[%clk 0:16:06]} 26... Rc6 {[%clk
0:16:13]} 27. Rxc6 {[%clk 0:16:14]} 27... Bxc6 {[%clk 0:16:32]} 28. Rc1 {[%clk
0:16:34]} 28... Nb8 {[%clk 0:16:08]} 29. Ne5 {[%clk 0:16:49]} 29... Bd7 {[%clk
0:16:23]} 30. Rc7 {[%clk 0:16:43]} 30... Be6 {[%clk 0:15:42]} 31. Rxa7 {[%clk
0:16:45]} 31... Bf7 {[%clk 0:09:19]} 32. Ra8 {[%clk 0:17:04]} 1-0

[Variant "Standard"]
[Site "Europe Echecs"]

[Event "Championnat du monde jeunes U10"]
[Date "2024.11.20"]
[White "Orsi, Andrea"]
[Black "Mitrovic, Vasilije"]
[WhiteElo "1728"]
[BlackElo "1590"]
[Round "6.7"]
[Result "0-1"]
[TimeControl "5400+30"]

1. e4 {[%clk 1:30:53]} 1... e5 {[%clk 1:29:49]} 2. Nf3 {[%clk 1:31:13]} 2... Nc6
{[%clk 1:30:04]} 3. Bb5 {[%clk 1:31:37]} 3... a6 {[%clk 1:28:59]} 4. Ba4 {[%clk
1:32:01]} 4... b5 {[%clk 1:27:19]} 5. Bb3 {[%clk 1:31:15]} 5... Bc5 {[%clk
1:12:31]} 6. c3 {[%clk 1:27:31]} 6... d6 {[%clk 1:06:39]} 7. d4 {[%clk 1:27:13]}
7... exd4 {[%clk 1:05:14]} 8. cxd4 {[%clk 1:26:29]} 8... Bb6 {[%clk 1:01:19]} 9.
h3 {[%clk 1:19:49]} 9... Nf6 {[%clk 0:56:39]} 10. O-O {[%clk 1:12:41]} 10... O-O
{[%clk 0:46:30]} 11. Nc3 {[%clk 0:58:37]} 11... h6 {[%clk 0:41:02]} 12. a4
{[%clk 0:45:38]} 12... bxa4 {[%clk 0:36:21]} 13. Nxa4 {[%clk 0:33:25]} 13... Ba7
{[%clk 0:26:34]} 14. Re1 {[%clk 0:19:23]} 14... Re8 {[%clk 0:16:58]} 15. Nc3
{[%clk 0:15:03]} 15... Bb7 {[%clk 0:14:00]} 16. Bc4 {[%clk 0:10:23]} 16... Bb6
{[%clk 0:11:14]} 17. Qb3 {[%clk 0:04:54]} 17... Qd7 {[%clk 0:10:52]} 18. e5
{[%clk 0:01:40]} 18... Na5 {[%clk 0:10:01]} 19. Rxa5 {[%clk 0:01:00]} 19... Bxa5
{[%clk 0:09:39]} 20. e6 {[%clk 0:00:32]} 20... fxe6 {[%clk 0:08:44]} 21. Qxb7
{[%clk 0:00:33]} 21... Reb8 {[%clk 0:08:03]} 22. Qxb8+ {[%clk 0:00:47]} 22...
Rxb8 {[%clk 0:08:16]} 23. Bxe6+ {[%clk 0:01:14]} 23... Qf7 {[%clk 0:08:16]} 24.
Bxf7+ {[%clk 0:01:31]} 24... Kxf7 {[%clk 0:08:41]} 25. Nd2 {[%clk 0:01:21]}
25... Bb6 26. Nb3 {[%clk 0:01:08]} 26... c6 {[%clk 0:08:21]} 27. Bf4 {[%clk
0:00:41]} 27... Rd8 {[%clk 0:08:13]} 28. Ra1 {[%clk 0:00:46]} 28... a5 {[%clk
0:08:10]} 29. Nxa5 {[%clk 0:01:05]} 29... Ra8 {[%clk 0:07:40]} 30. Bxd6 {[%clk
0:00:31]} 30... Rxa5 {[%clk 0:07:47]} 31. Rxa5 {[%clk 0:00:41]} 31... Bxa5
{[%clk 0:08:11]} 32. b4 {[%clk 0:00:41]} 32... Bb6 {[%clk 0:08:15]} 33. Bc5
{[%clk 0:00:52]} 33... Bc7 {[%clk 0:07:43]} 34. Kf1 {[%clk 0:01:09]} 34... g6
{[%clk 0:07:35]} 35. Ke2 {[%clk 0:01:34]} 35... Ke6 {[%clk 0:07:32]} 36. Kd3
{[%clk 0:00:46]} 36... h5 {[%clk 0:07:33]} 37. Kc4 {[%clk 0:00:45]} 37... h4
{[%clk 0:07:32]} 38. b5 {[%clk 0:00:41]} 38... cxb5+ {[%clk 0:07:49]} 39. Kxb5
{[%clk 0:01:00]} 39... Nh5 {[%clk 0:07:35]} 40. Kc6 Bf4 {[%clk 0:06:27]} 41. d5+
{[%clk 0:01:31]} 41... Kf7 {[%clk 0:06:39]} 42. d6 {[%clk 0:01:31]} 42... Ng7
{[%clk 0:06:19]} 43. Nd5 {[%clk 0:01:16]} 43... Bg5 {[%clk 0:06:09]} 44. f4
{[%clk 0:01:29]} 44... Bd8 {[%clk 0:06:23]} 45. Bb6 {[%clk 0:00:58]} 45... Bxb6
{[%clk 0:06:20]} 46. Nxb6 {[%clk 0:00:47]} 46... Ne6 {[%clk 0:05:43]} 0-1

[Variant "Standard"]
[Site "Europe Echecs"]

[Event "Championnat du monde jeunes U10"]
[Date "2024.11.20"]
[White "Sahin, Yusuf Kerem"]
[Black "Gim, Hajin"]
[WhiteElo "1720"]
[BlackElo "1603"]
[Round "6.8"]
[Result "0-1"]
[TimeControl "5400+30"]

1. d4 {[%clk 1:30:56]} 1... Nf6 {[%clk 1:30:58]} 2. c4 {[%clk 1:31:17]} 2... c5
{[%clk 1:31:26]} 3. d5 {[%clk 1:31:37]} 3... b5 {[%clk 1:31:53]} 4. cxb5 {[%clk
1:31:50]} 4... a6 {[%clk 1:32:20]} 5. bxa6 {[%clk 1:31:50]} 5... Bxa6 {[%clk
1:32:45]} 6. Nc3 {[%clk 1:32:00]} 6... g6 {[%clk 1:33:09]} 7. e4 {[%clk
1:32:03]} 7... Bxf1 {[%clk 1:33:34]} 8. Kxf1 {[%clk 1:32:26]} 8... d6 {[%clk
1:34:01]} 9. Nge2 {[%clk 1:32:17]} 9... Bg7 {[%clk 1:34:22]} 10. h3 {[%clk
1:31:30]} 10... O-O {[%clk 1:34:40]} 11. Kg1 {[%clk 1:30:55]} 11... Nbd7 {[%clk
1:34:50]} 12. Kh2 {[%clk 1:30:03]} 12... Qb6 {[%clk 1:34:56]} 13. Qc2 {[%clk
1:28:52]} 13... Rfb8 {[%clk 1:34:32]} 14. b3 {[%clk 1:23:29]} 14... Ra6 {[%clk
1:25:01]} 15. f4 {[%clk 1:17:41]} 15... Rba8 {[%clk 1:23:20]} 16. Bd2 {[%clk
1:16:06]} 16... Ne8 {[%clk 1:19:23]} 17. Na4 {[%clk 1:09:15]} 17... Qa7 {[%clk
1:16:17]} 18. Bc3 {[%clk 1:08:15]} 18... Bh6 {[%clk 1:15:44]} 19. g3 {[%clk
1:02:59]} 19... Bg7 {[%clk 1:14:13]} 20. Bxg7 {[%clk 1:00:20]} 20... Kxg7 {[%clk
1:13:54]} 21. Nc1 {[%clk 0:58:31]} 21... c4 {[%clk 1:13:12]} 22. Nc3 {[%clk
0:55:03]} 22... cxb3 {[%clk 1:13:16]} 23. Nxb3 {[%clk 0:54:59]} 23... Rc8 {[%clk
1:13:22]} 24. Qb2 {[%clk 0:51:58]} 24... Kg8 {[%clk 1:13:36]} 25. Rhe1 {[%clk
0:50:51]} 25... Nb6 {[%clk 1:11:49]} 26. Nb5 {[%clk 0:45:03]} 26... Qd7 {[%clk
1:10:47]} 27. Qe2 {[%clk 0:41:55]} 27... Ra4 {[%clk 1:07:27]} 28. N3d4 {[%clk
0:38:31]} 28... Rac4 {[%clk 1:04:22]} 29. Nc6 {[%clk 0:33:26]} 29... Nf6 {[%clk
1:03:47]} 30. Qd3 {[%clk 0:22:02]} 30... e6 {[%clk 1:00:18]} 31. Na3 {[%clk
0:15:22]} 31... Ra4 {[%clk 0:54:51]} 32. Qb5 {[%clk 0:11:09]} 32... exd5 {[%clk
0:53:14]} 33. Rac1 {[%clk 0:07:28]} 33... Rxa3 {[%clk 0:52:21]} 34. Qxb6 {[%clk
0:07:51]} 34... Rxa2+ {[%clk 0:52:29]} 35. Kg1 {[%clk 0:07:43]} 35... Qxh3
{[%clk 0:52:36]} 36. Ne7+ {[%clk 0:07:54]} 36... Kg7 {[%clk 0:52:57]} 37. Qf2
{[%clk 0:08:03]} 37... Rxf2 {[%clk 0:53:17]} 38. Kxf2 {[%clk 0:08:28]} 38...
Nxe4+ {[%clk 0:52:59]} 39. Ke3 {[%clk 0:08:20]} 39... Qxg3+ {[%clk 0:53:19]} 40.
Kd4 {[%clk 0:08:43]} 40... Qf2+ {[%clk 0:53:29]} 41. Kxd5 {[%clk 0:08:46]} 41...
Rxc1 {[%clk 0:53:47]} 42. Rxc1 {[%clk 0:08:51]} 42... Qd2+ {[%clk 0:54:10]} 43.
Kxe4 {[%clk 0:09:13]} 43... Qxc1 {[%clk 0:54:31]} 44. Nf5+ {[%clk 0:09:33]}
44... gxf5+ {[%clk 0:54:52]} 45. Kxf5 {[%clk 0:09:59]} 45... h5 {[%clk 0:54:51]}
0-1

[Variant "Standard"]
[Site "Europe Echecs"]

[Event "Championnat du monde jeunes U10"]
[Date "2024.11.20"]
[White "Tenuun, Tseesuren"]
[Black "Roth, Elai"]
[WhiteElo "1702"]
[BlackElo "1577"]
[Round "6.9"]
[Result "0-1"]
[TimeControl "5400+30"]

1. d4 {[%clk 1:27:33]} 1... d5 {[%clk 1:30:55]} 2. c4 {[%clk 1:27:13]} 2... c6
{[%clk 1:31:18]} 3. Nf3 {[%clk 1:27:36]} 3... Nf6 {[%clk 1:31:40]} 4. e3 {[%clk
1:28:01]} 4... e6 {[%clk 1:32:05]} 5. Be2 {[%clk 1:28:20]} 5... Nbd7 {[%clk
1:32:05]} 6. O-O {[%clk 1:27:48]} 6... dxc4 {[%clk 1:32:18]} 7. Bxc4 {[%clk
1:26:49]} 7... b5 {[%clk 1:32:30]} 8. Bd3 {[%clk 1:27:14]} 8... Bd6 {[%clk
1:32:46]} 9. e4 {[%clk 1:26:40]} 9... e5 {[%clk 1:33:07]} 10. Qc2 {[%clk
1:23:34]} 10... Bb7 {[%clk 1:32:56]} 11. Rd1 {[%clk 1:22:29]} 11... Qb6 {[%clk
1:30:02]} 12. Bg5 {[%clk 1:21:23]} 12... a6 {[%clk 1:21:00]} 13. Nbd2 {[%clk
1:16:26]} 13... c5 {[%clk 1:17:01]} 14. dxe5 {[%clk 1:13:10]} 14... Nxe5 {[%clk
1:16:19]} 15. Bxf6 {[%clk 1:12:11]} 15... gxf6 {[%clk 1:16:29]} 16. Nh4 {[%clk
1:10:04]} 16... Ng4 {[%clk 1:08:00]} 17. Ndf3 {[%clk 0:57:51]} 17... c4 {[%clk
1:07:07]} 18. Bf1 {[%clk 0:57:07]} 18... Bc5 {[%clk 1:05:55]} 19. Rd2 {[%clk
0:56:24]} 19... Rd8 {[%clk 1:05:07]} 20. Re2 {[%clk 0:55:37]} 20... Kf8 {[%clk
0:58:33]} 21. h3 {[%clk 0:55:49]} 21... Nxf2 {[%clk 0:56:43]} 22. Rxf2 {[%clk
0:50:32]} 22... Bxf2+ {[%clk 0:56:36]} 23. Qxf2 {[%clk 0:50:53]} 23... Qxf2+
{[%clk 0:56:54]} 24. Kxf2 {[%clk 0:51:19]} 24... Bxe4 {[%clk 0:57:15]} 25. g4
{[%clk 0:48:19]} 25... h5 {[%clk 0:56:36]} 26. Re1 {[%clk 0:44:34]} 26... Bb7
{[%clk 0:53:04]} 27. Re3 {[%clk 0:35:44]} 27... hxg4 {[%clk 0:50:15]} 28. hxg4
{[%clk 0:35:37]} 28... Bxf3 {[%clk 0:49:14]} 29. Nxf3 {[%clk 0:36:00]} 29... Kg7
{[%clk 0:48:50]} 30. b3 {[%clk 0:32:43]} 30... cxb3 {[%clk 0:47:46]} 31. Rxb3
{[%clk 0:32:24]} 31... Rd6 {[%clk 0:47:35]} 32. Kg3 {[%clk 0:32:30]} 32... Re8
{[%clk 0:43:19]} 33. Nh4 {[%clk 0:32:29]} 33... Rd2 {[%clk 0:43:32]} 34. Nf5+
{[%clk 0:31:50]} 34... Kg8 {[%clk 0:41:16]} 35. Ra3 {[%clk 0:27:30]} 35... Re6
{[%clk 0:40:32]} 36. Bd3 {[%clk 0:25:55]} 36... b4 {[%clk 0:38:51]} 37. Rb3
{[%clk 0:25:11]} 37... a5 {[%clk 0:38:07]} 38. Bc4 {[%clk 0:24:41]} 38... Re4
{[%clk 0:35:12]} 39. Bd3 {[%clk 0:23:16]} 39... Re5 {[%clk 0:33:39]} 40. a4
{[%clk 0:17:40]} 40... Rc5 {[%clk 0:32:30]} 41. Kf3 {[%clk 0:16:13]} 41... Rc3
{[%clk 0:32:42]} 42. Rxc3 {[%clk 0:16:10]} 42... bxc3 {[%clk 0:33:07]} 43. Ke3
{[%clk 0:16:26]} 43... Ra2 {[%clk 0:32:59]} 44. Bb5 {[%clk 0:16:04]} 44... Rg2
{[%clk 0:32:40]} 45. Nd4 {[%clk 0:15:19]} 45... c2 {[%clk 0:32:45]} 46. Nxc2
{[%clk 0:14:51]} 46... Rxc2 {[%clk 0:33:05]} 47. Kf4 {[%clk 0:14:33]} 47... Kg7
{[%clk 0:32:53]} 48. Kf3 {[%clk 0:14:02]} 48... Kh6 {[%clk 0:32:13]} 49. Kf4
{[%clk 0:13:53]} 49... Rf2+ {[%clk 0:30:53]} 50. Kg3 {[%clk 0:12:34]} 50... Rd2
{[%clk 0:30:56]} 51. Kf4 {[%clk 0:12:24]} 51... Kg6 {[%clk 0:31:07]} 52. Ke3
{[%clk 0:11:47]} 52... Rd6 {[%clk 0:31:14]} 53. Kf4 {[%clk 0:06:06]} 53... Rd4+
{[%clk 0:31:30]} 54. Kg3 {[%clk 0:06:18]} 54... Kg5 {[%clk 0:31:44]} 55. Kf3
{[%clk 0:06:28]} 55... Rxg4 {[%clk 0:31:49]} 56. Bd7 {[%clk 0:06:50]} 56... Rd4
{[%clk 0:31:58]} 57. Bc6 {[%clk 0:07:12]} 57... f5 {[%clk 0:31:56]} 58. Bb5
{[%clk 0:07:36]} 58... f4 {[%clk 0:32:02]} 59. Bc6 0-1

[Variant "Standard"]
[Site "Europe Echecs"]

[Event "Championnat du monde jeunes U10"]
[Date "2024.11.20"]
[White "Skouroupathis, Kyriakos"]
[Black "Button-Rabl, Jiban"]
[WhiteElo "1695"]
[BlackElo "1435"]
[Round "6.10"]
[Result "1-0"]
[TimeControl "5400+30"]

1. e4 {[%clk 1:30:57]} 1... e5 {[%clk 1:30:59]} 2. Nf3 {[%clk 1:31:19]} 2... Nc6
{[%clk 1:31:22]} 3. Bc4 {[%clk 1:31:44]} 3... Bc5 {[%clk 1:31:43]} 4. O-O {[%clk
1:32:08]} 4... d6 {[%clk 1:31:53]} 5. h3 {[%clk 1:29:41]} 5... Nf6 {[%clk
1:31:37]} 6. d3 {[%clk 1:28:08]} 6... h6 {[%clk 1:31:25]} 7. Nc3 {[%clk
1:27:09]} 7... O-O {[%clk 1:31:22]} 8. Bd2 {[%clk 1:24:02]} 8... Be6 {[%clk
1:31:18]} 9. Bb3 {[%clk 1:24:12]} 9... a6 {[%clk 1:28:46]} 10. Be3 {[%clk
1:05:55]} 10... Bb6 {[%clk 1:27:41]} 11. Bxb6 {[%clk 1:04:11]} 11... cxb6 {[%clk
1:27:30]} 12. d4 {[%clk 1:03:48]} 12... exd4 {[%clk 1:21:02]} 13. Nxd4 {[%clk
1:04:11]} 13... Qd7 {[%clk 1:16:48]} 14. Nxe6 {[%clk 1:02:32]} 14... fxe6 {[%clk
1:16:45]} 15. Na4 {[%clk 1:02:56]} 15... Rae8 {[%clk 1:09:28]} 16. Nxb6 {[%clk
0:57:35]} 16... Qc7 {[%clk 1:08:03]} 17. Nc4 {[%clk 0:56:21]} 17... Nxe4 {[%clk
1:06:54]} 18. f3 {[%clk 0:55:59]} 18... Ng3 {[%clk 1:06:26]} 19. Qxd6 {[%clk
0:55:33]} 19... Qxd6 {[%clk 0:53:55]} 20. Nxd6 {[%clk 0:55:50]} 20... Rd8 {[%clk
0:45:09]} 21. Rfd1 {[%clk 0:53:29]} 21... Ne2+ {[%clk 0:42:27]} 22. Kf2 {[%clk
0:53:32]} 22... Ncd4 {[%clk 0:42:19]} 23. Nxb7 {[%clk 0:52:46]} 23... Rb8 {[%clk
0:41:06]} 24. Nc5 {[%clk 0:52:16]} 24... Rfe8 {[%clk 0:40:12]} 25. Nxa6 {[%clk
0:49:34]} 25... Rbc8 {[%clk 0:39:38]} 26. Nb4 {[%clk 0:46:01]} 26... Rc5 {[%clk
0:38:46]} 27. Nd3 {[%clk 0:44:31]} 27... Rf5 {[%clk 0:38:57]} 28. Nc1 {[%clk
0:36:43]} 28... Re5 {[%clk 0:37:52]} 29. Nxe2 {[%clk 0:35:51]} 29... Rxe2+
{[%clk 0:37:46]} 30. Kf1 {[%clk 0:36:13]} 30... Nxb3 {[%clk 0:37:27]} 31. Kxe2
{[%clk 0:36:17]} 31... Nxa1 {[%clk 0:37:48]} 32. Rxa1 {[%clk 0:36:46]} 32... Kf7
{[%clk 0:38:03]} 33. a4 {[%clk 0:36:43]} 33... Rd8 {[%clk 0:38:28]} 34. Rd1
{[%clk 0:36:26]} 34... Ra8 {[%clk 0:38:41]} 35. b3 {[%clk 0:36:31]} 35... Kf6
{[%clk 0:39:05]} 36. c4 {[%clk 0:34:52]} 36... Rb8 {[%clk 0:38:46]} 37. Rd3
{[%clk 0:35:11]} 37... Kf5 {[%clk 0:39:03]} 38. g3 {[%clk 0:35:03]} 38... h5
{[%clk 0:37:42]} 39. Ke3 {[%clk 0:33:43]} 39... g5 {[%clk 0:37:56]} 40. g4+
{[%clk 0:32:48]} 40... Kg6 {[%clk 0:38:10]} 41. Ke4 {[%clk 0:33:02]} 41... Rb6
{[%clk 0:38:25]} 42. c5 {[%clk 0:32:46]} 42... Rc6 {[%clk 0:37:12]} 43. b4
{[%clk 0:32:59]} 43... Ra6 {[%clk 0:37:36]} 44. a5 {[%clk 0:33:02]} 44... Ra8
{[%clk 0:37:39]} 45. c6 {[%clk 0:33:22]} 45... Rc8 {[%clk 0:37:53]} 46. b5
{[%clk 0:33:42]} 46... hxg4 {[%clk 0:38:13]} 47. fxg4 {[%clk 0:34:04]} 47... Kf6
{[%clk 0:38:32]} 48. b6 {[%clk 0:33:29]} 48... Rxc6 {[%clk 0:38:48]} 49. b7
{[%clk 0:33:53]} 49... Rc4+ {[%clk 0:39:09]} 50. Rd4 {[%clk 0:34:17]} 50... Rc1
{[%clk 0:38:16]} 51. b8=Q Re1+ {[%clk 0:38:40]} 52. Kd3 {[%clk 0:34:50]} 52...
Rf1 {[%clk 0:39:01]} 53. Qf8+ {[%clk 0:35:14]} 53... Kg6 {[%clk 0:39:23]} 54.
Qxf1 {[%clk 0:35:35]} 54... Kh6 {[%clk 0:39:34]} 55. Qf6+ {[%clk 0:35:58]} 55...
Kh7 {[%clk 0:39:58]} 56. Rd7+ {[%clk 0:36:24]} 1-0

[Variant "Standard"]
[Site "Europe Echecs"]